bitfinex-derivatives/quotes_ETHF0:USTF0_20250730
["timestamp","ask_amount","ask_price","bid_price","bid_amount"]
[1753852938418,2.7826335,3800.0,3799.9,2.0111]
[1753852938617,3.1016335,3800.0,3799.9,2.0111]
[1753852939016,2.206,3799.7,3799.6,0.9803]
[1753852939213,1.04738,3799.2,3799.1,0.5274]
[1753852939416,2.2400535,3799.2,3799.1,1.2742]
[1753852939621,2.2400535,3799.2,3799.1,1.5841]
[1753852940116,3.1017535,3799.2,3799.1,1.5841]
[1753852940323,2.5752735,3799.2,3799.1,1.5841]
[1753852940619,2.2562735,3799.2,3799.1,2.0111]
[1753852940820,1.3945735,3799.2,3799.1,2.0111]
[1753852941014,2.2562735,3799.2,3799.1,1.7113]
[1753852941218,2.5752735,3799.2,3799.1,0.3099]
[1753852942817,0.52649,3799.1,3798.9,0.3181]
[1753852943020,2.5359735,3799.0,3798.9,0.3181]
[1753852944221,0.4922,3798.7,3798.6,0.3181]
[1753852944416,2.5359735,3798.7,3798.6,1.1174]
[1753852944622,2.2287735,3798.7,3798.6,1.6668]
[1753852944816,2.2287735,3798.7,3798.6,1.9849]
[1753852946417,2.2287735,3798.7,3798.6,1.5783]
[1753852946617,2.5359735,3798.7,3798.6,0.5361]
[1753852947117,2.5359735,3798.7,3798.6,0.8454]
[1753852947318,2.2287735,3798.7,3798.6,1.9849]
[1753852947718,2.2287735,3798.7,3798.6,1.1174]
[1753852947913,2.5359735,3798.7,3798.6,0.8454]
[1753852948119,2.08038,3798.4,3798.3,0.7993]
[1753852948318,3.0625535,3798.4,3798.3,0.7993]
[1753852948617,3.0625535,3798.4,3798.3,1.1174]
[1753852948819,1.4458,3798.3,3798.2,0.01842954]
[1753852949012,1.6521,3798.3,3798.2,0.01842954]
[1753852949213,1.9593,3798.3,3798.2,0.01842954]
[1753852949421,1.9593,3798.3,3798.2,0.33652954]
[1753852950624,1.9593,3798.3,3798.2,0.86382954]
[1753852952722,1.9593,3798.3,3798.2,0.64582954]
[1753852952927,7.22488283,3798.3,3798.2,0.01842954]
[1753852954231,7.22488283,3798.3,3798.2,0.33652954]
[1753852955729,7.22488283,3798.3,3798.2,0.55452954]
[1753852955929,7.22488283,3798.3,3798.2,1.13582954]
[1753852956227,7.22488283,3798.3,3798.2,2.00332954]
[1753852956634,7.22488283,3798.3,3798.2,1.13582954]
[1753852956829,7.22488283,3798.3,3798.2,0.86382954]
[1753852957029,7.22488283,3798.3,3798.2,0.55452954]
[1753852959131,7.22488283,3798.3,3798.2,1.73132954]
[1753852960031,7.22488283,3798.3,3798.2,0.86382954]
[1753852962029,7.22488283,3798.3,3798.2,2.00332954]
[1753852962231,21.286,3798.3,3798.2,0.81772954]
[1753852962531,21.5829,3798.3,3798.2,0.81772954]
[1753852962729,22.9381,3798.3,3798.2,0.81772954]
[1753852962928,22.9381,3798.3,3798.2,2.00332954]
[1753852966136,1.6521,3798.3,3798.2,2.00332954]
[1753852966336,22.9371,3798.3,3798.2,2.00332954]
[1753852966935,0.52658,3798.4,3798.3,1.9849]
[1753852967134,21.81058,3798.4,3798.3,1.9849]
[1753852969233,21.80958,3798.4,3798.3,1.9849]
[1753852969941,21.283,3798.4,3798.3,1.9849]
[1753852970947,0.863,3799.2,3798.7,0.7993]
[1753852971141,0.863,3799.2,3798.5,0.52657]
[1753852971142,0.5265,3799.0,3798.9,1.9849]
[1753852971338,21.281,3799.0,3798.9,1.9849]
[1753852972445,22.06160349,3799.0,3798.9,1.9849]
[1753852973045,21.281,3799.0,3798.9,1.9849]
[1753852973248,0.5766735,3799.1,3799.0,1.4507]
[1753852973550,1.1031135,3799.5,3799.4,1.9395]
[1753852973750,23.1639119,3799.5,3799.4,1.9395]
[1753852974250,1.8839119,3799.5,3799.4,1.9395]
[1753852974450,23.1619119,3799.5,3799.4,1.9395]
[1753852974647,22.3811135,3799.5,3799.4,1.9395]
[1753852974849,1.8999235,3800.1,3800.0,0.7688]
[1753852975049,24.81654393,3800.1,3800.0,1.9395]
[1753852976341,24.0356235,3800.1,3800.0,1.9395]
[1753852976750,21.8546735,3800.1,3800.0,1.9395]
[1753852977350,0.5766735,3800.1,3800.0,1.9395]
[1753852977555,21.8516735,3800.1,3800.0,1.9395]
[1753852978153,22.3780235,3800.1,3800.0,1.9395]
[1753852978343,0.5766735,3800.1,3800.0,1.9395]
[1753852978548,21.8506735,3800.1,3800.0,1.9395]
[1753852979150,0.5766735,3800.1,3800.0,1.9395]
[1753852979356,0.5263,3800.5,3800.4,0.7688]
[1753852979550,21.274,3800.5,3800.4,1.9395]
[1753852979850,21.8506735,3800.5,3800.4,1.9395]
[1753852981754,21.8476735,3800.5,3800.4,1.9395]
[1753852983155,21.8476735,3800.5,3799.7,0.5264]
[1753852983345,0.8567735,3800.0,3799.9,1.29517]
[1753852983550,0.8567735,3800.0,3799.9,1.59767]
[1753852983951,0.8567735,3800.0,3799.9,1.9395]
[1753852985356,0.8567735,3800.0,3799.9,2.46588]
[1753852985555,21.271,3800.5,3800.1,0.52634]
[1753852985857,23.45189,3800.5,3800.4,1.9395]
[1753852986057,24.3241635,3800.5,3800.4,1.9395]
[1753852986260,24.3241635,3800.5,3800.4,1.5034]
[1753852986848,24.3241635,3800.5,3800.4,1.0713]
[1753852987555,24.3181635,3800.5,3800.4,1.0713]
[1753852988457,24.0225635,3800.5,3800.4,1.9395]
[1753852989454,0.5766735,3800.5,3800.4,2.46581]
[1753852989955,0.5766735,3801.0,3800.9,0.7688]
[1753852990156,21.8386735,3801.0,3800.9,1.9395]
[1753852990347,23.4932735,3801.0,3800.9,1.9395]
[1753852991155,2.2312735,3801.0,3800.9,1.9395]
[1753852991354,23.4932735,3801.0,3800.9,1.9395]
[1753852991656,22.9166,3801.0,3800.9,1.9395]
[1753852991865,37.92,3801.4,3801.2,1.1707]
[1753852992159,39.30388,3801.4,3801.3,1.9395]
[1753852992359,61.1395535,3801.4,3801.3,1.9395]
[1753852992552,61.4351535,3801.4,3801.3,1.9395]
[1753852993764,38.4966735,3801.4,3801.3,1.9395]
[1753852993962,59.7546735,3801.4,3801.3,1.9395]
[1753852994260,60.6123735,3801.4,3801.3,1.9395]
[1753852994962,60.6123735,3801.4,3799.2,0.25893041]
[1753852994963,0.7969,3801.0,3800.9,0.7688]
[1753852995154,2.2312735,3801.0,3800.3,0.4321]
[1753852995355,1.6546,3800.7,3800.6,1.9395]
[1753852996060,1.6546,3800.7,3800.6,1.637]
[1753852996250,0.2801,3800.7,3800.6,1.9395]
[1753852996449,21.256,3800.8,3800.7,2.46577]
[1753852996662,0.5766735,3801.2,3801.1,1.9395]
[1753852996863,0.52619,3801.3,3801.2,1.5034]
[1753852997063,24.0124635,3801.3,3801.2,0.5094]
[1753852997361,3.0530635,3801.3,3801.2,0.5094]
[1753852997861,24.3070635,3801.3,3801.2,0.5094]
[1753852998457,3.0530635,3801.3,3801.2,0.7913]
[1753852998654,21.8296735,3801.3,3801.2,1.9395]
[1753852998865,21.253,3801.4,3801.2,0.7688]
[1753852999061,21.77918,3801.4,3801.3,1.9395]
[1753852999266,24.0104535,3801.4,3801.3,1.9395]
[1753852999460,24.3060535,3801.4,3801.3,1.9395]
[1753852999669,24.3060535,3801.4,3800.4,4.28]
[1753852999670,1.32311,3801.1,3801.0,0.7688]
[1753852999962,2.7574835,3801.1,3801.0,1.9395]
[1753853000167,24.3050835,3801.1,3801.0,0.5094]
[1753853001162,24.3050835,3801.1,3800.6,0.8682]
[1753853001163,1.74797,3800.7,3800.6,1.9395]
[1753853001367,24.0085435,3800.7,3800.6,1.9395]
[1753853001568,23.4822735,3800.7,3800.6,1.9395]
[1753853002271,2.15901,3801.8,3801.7,0.2678]
[1753853002473,2.15901,3801.8,3801.7,1.8674]
[1753853002863,2.46351,3801.8,3801.7,1.8674]
[1753853003068,1.9374,3801.8,3801.7,1.8674]
[1753853003374,22.8829,3801.8,3801.7,1.8674]
[1753853004372,23.6675306,3801.8,3801.7,1.8674]
[1753853005171,23.6665306,3801.8,3801.7,1.8674]
[1753853006977,23.9710306,3801.8,3801.7,1.8674]
[1753853007278,23.9690306,3801.8,3801.7,1.8674]
[1753853007776,0.2,3801.9,3801.8,2.39351]
[1753853007975,0.2,3801.9,3801.7,0.5766735]
[1753853007976,0.7067,3802.6,3802.5,0.7816]
[1753853008174,22.73812118,3802.6,3802.5,1.8674]
[1753853008378,22.8789,3802.6,3802.5,1.8674]
[1753853008579,22.8789,3802.6,3802.5,2.39342]
[1753853009581,0.5259,3803.4,3803.1,1.1744]
[1753853009879,60.38188198,3803.2,3803.1,1.8674]
[1753853010080,23.66328198,3803.2,3803.1,1.8674]
[1753853010282,22.03038198,3803.2,3803.1,1.8674]
[1753853010481,21.246,3803.2,3803.1,1.8674]
[1753853010685,0.52587,3803.6,3803.1,2.39333]
[1753853010880,22.76603748,3803.5,3803.4,1.8674]
[1753853011277,21.9823,3803.5,3803.4,1.8674]
[1753853011478,21.243,3803.5,3803.4,1.8674]
[1753853012085,21.5268,3803.5,3803.4,1.8674]
[1753853012281,22.453,3803.5,3803.4,1.8674]
[1753853013586,21.24,3803.6,3803.5,1.0858]
[1753853013786,21.24,3803.6,3803.5,1.8674]
[1753853013983,21.5238,3803.6,3803.5,1.8674]
[1753853014494,21.24,3803.6,3803.5,1.8674]
[1753853015292,21.5238,3803.6,3803.5,1.8674]
[1753853015489,21.24,3803.6,3803.5,1.8674]
[1753853015893,21.5238,3803.6,3803.5,1.8674]
[1753853016085,2.49753,3803.7,3803.2,0.31]
[1753853016295,2.2095735,3803.3,3803.2,0.5196]
[1753853016592,1.3311735,3803.3,3802.9,0.3928]
[1753853016894,2.5140735,3803.0,3802.9,0.5196]
[1753853017285,0.52596,3802.9,3802.4,0.52603]
[1753853017490,1.21,3802.5,3802.4,1.8674]
[1753853017690,1.6329,3802.5,3802.4,1.8674]
[1753853018890,1.059,3802.4,3802.3,0.7816]
[1753853019084,0.7545,3802.4,3802.3,1.8674]
[1753853019488,1.21,3802.4,3802.3,1.8674]
[1753853019890,0.4229,3802.6,3802.4,0.52603]
[1753853020090,0.7067,3802.6,3802.5,0.7816]
[1753853020296,0.7393,3802.6,3802.5,1.8674]
[1753853020500,0.2838,3802.7,3802.6,1.8674]
[1753853020690,0.9351,3802.7,3802.6,1.5574]
[1753853020997,1.6329,3802.7,3802.6,1.8674]
[1753853022189,1.21,3802.7,3802.6,1.8674]
[1753853022390,0.80974,3803.1,3803.0,0.7816]
[1753853022697,0.2838,3803.1,3803.0,1.8673]
[1753853023195,0.9351,3803.5,3803.4,1.8673]
[1753853023395,1.99169603,3803.5,3803.4,1.8673]
[1753853023696,2.41459603,3803.5,3803.4,1.8673]
[1753853024191,0.5587,3803.5,3803.4,1.8673]
[1753853024490,23.1714,3803.8,3803.7,2.39315]
[1753853024797,23.95313194,3803.8,3803.7,1.8673]
[1753853025898,23.22573194,3803.8,3803.7,1.8673]
[1753853026193,23.64863194,3803.8,3803.7,1.8673]
[1753853026397,23.1714,3803.8,3803.7,1.8673]
[1753853026588,23.9530332,3803.8,3803.7,1.8673]
[1753853026794,22.8669,3803.8,3803.7,1.8673]
[1753853026990,0.1958,3803.6,3803.5,0.31]
[1753853027195,0.7545,3803.6,3803.4,0.3928]
[1753853027399,1.4819,3803.5,3803.4,0.9124]
[1753853027597,1.9374,3803.5,3803.4,0.9124]
[1753853028097,1.9374,3803.5,3803.4,1.1802]
[1753853028498,1.9374,3803.5,3803.4,0.7874]
[1753853028702,1.9374,3803.5,3803.4,1.1802]
[1753853030504,1.9374,3803.5,3803.4,1.8673]
[1753853030505,1.6329,3803.5,3803.4,1.8673]
[1753853030702,1.21,3803.5,3803.4,1.8673]
[1753853031001,0.5045,3803.9,3803.0,1.31487]
[1753853031002,0.6796,3803.9,3803.8,1.8673]
[1753853031209,1.8329,3803.9,3803.8,1.4844]
[1753853031405,2.61545514,3803.9,3803.8,1.0937]
[1753853031706,2.61545514,3803.9,3803.8,1.8767]
[1753853032906,1.8329,3803.9,3803.8,1.8767]
[1753853033102,2.61593091,3803.9,3803.8,1.8767]
[1753853033307,2.61593277,3803.9,3803.8,1.8767]
[1753853033804,0.4838,3803.9,3803.8,1.8767]
[1753853034006,1.4433,3803.9,3803.8,1.8767]
[1753853034205,2.1522,3803.9,3803.8,1.8767]
[1753853034612,1.6758,3803.8,3803.7,0.211]
[1753853034807,1.9522,3803.8,3803.7,0.211]
[1753853035005,1.9522,3803.8,3803.7,0.5363]
[1753853035805,1.6423,3803.8,3803.7,1.9109]
[1753853036206,1.2433,3803.8,3803.7,1.9109]
[1753853036409,0.3068,3803.8,3803.7,1.9109]
[1753853036914,0.2,3803.9,3803.8,1.32844]
[1753853037213,0.2,3803.9,3803.8,2.43674]
[1753853037601,0.98481565,3803.9,3803.8,2.43674]
[1753853040609,0.2,3803.9,3803.8,7.69457088]
[1753853041006,0.018,3804.3,3804.2,1.89838]
[1753853041219,0.018,3804.3,3804.2,2.22368]
[1753853041509,0.80333358,3804.3,3804.2,7.48151088]
[1753853042214,0.018,3804.3,3804.2,7.48151088]
[1753853042604,0.3068,3805.0,3804.9,1.31528]
[1753853042817,1.09172444,3805.0,3804.9,1.31528]
[1753853043312,0.78492444,3805.0,3804.9,2.22358]
[1753853043912,22.62090538,3806.1,3805.3,0.7896]
[1753853044215,22.62090538,3806.1,3805.4,1.9768]
[1753853044216,0.4081,3805.5,3805.4,1.9768]
[1753853044411,1.71839688,3805.5,3805.4,1.9768]
[1753853044618,1.71839688,3805.5,3805.4,1.5276]
[1753853045314,1.09149688,3805.5,3805.4,1.5276]
[1753853045619,1.09660972,3805.5,3805.4,1.9768]
[1753853045807,0.41321284,3805.5,3805.4,1.9768]
[1753853046008,0.93871284,3805.5,3805.4,1.9768]
[1753853046213,0.87541284,3805.5,3805.4,1.9768]
[1753853047013,0.93871284,3805.5,3805.4,1.9768]
[1753853047822,0.87541284,3805.5,3805.4,1.9768]
[1753853048023,0.31191284,3805.5,3805.4,1.9768]
[1753853048227,0.00511284,3805.5,3805.4,1.9768]
[1753853048424,0.00511284,3805.5,3805.4,7.23242022]
[1753853050420,0.00511284,3805.5,3805.4,5.58092022]
[1753853050618,0.87541284,3805.5,3805.4,7.23242022]
[1753853050817,0.47651284,3805.5,3805.3,0.52563]
[1753853051021,0.3068,3804.9,3804.8,2.5025]
[1753853051221,0.9336,3804.9,3804.8,0.851]
[1753853051627,0.9336,3804.9,3804.8,1.2507]
[1753853051828,0.9336,3804.9,3804.8,0.725]
[1753853052534,0.9336,3804.9,3804.8,0.3253]
[1753853052726,0.9336,3804.9,3804.8,1.5276]
[1753853053231,0.06841284,3805.5,3804.9,0.52568]
[1753853053533,0.769,3805.4,3805.3,1.9768]
[1753853054129,0.53072284,3805.5,3805.3,1.32823]
[1753853054130,0.00511284,3805.5,3805.3,1.32823]
[1753853054442,0.00511284,3805.5,3805.4,1.9768]
[1753853054632,0.31191284,3805.5,3805.4,1.9768]
[1753853054837,0.87541284,3805.5,3805.4,2.50242]
[1753853055531,0.93871284,3805.5,3805.4,2.50242]
[1753853055835,0.93871284,3805.5,3805.4,0.3253]
[1753853056939,0.9336,3805.0,3804.9,1.2213]
[1753853057438,0.9336,3805.0,3804.9,1.5276]
[1753853057640,0.9336,3805.0,3804.9,1.9768]
[1753853058233,0.9336,3805.0,3804.9,1.5276]
[1753853058430,0.9336,3805.0,3804.9,1.2213]
[1753853058631,0.9336,3805.0,3804.9,0.3253]
[1753853059034,0.9336,3805.0,3804.9,0.5363]
[1753853059234,0.769,3805.0,3804.9,2.50248]
[1753853059634,0.3068,3805.0,3804.9,2.50248]
[1753853059941,0.769,3805.0,3804.9,1.9768]
[1753853060136,0.9336,3805.0,3804.9,1.9768]
[1753853060330,0.52565,3805.2,3804.9,1.9768]
[1753853060531,0.8703,3805.1,3805.0,1.5276]
[1753853060737,0.9336,3805.1,3805.0,1.5276]
[1753853061238,1.0048,3805.1,3805.0,1.5276]
[1753853061438,1.0048,3805.1,3805.0,1.9645]
[1753853061935,0.00511284,3805.5,3805.4,0.2459]
[1753853062135,0.00511284,3805.5,3805.4,2.1219]
[1753853062136,1.28511284,3805.5,3805.4,2.1219]
[1753853062340,0.72351284,3805.5,3805.4,2.1219]
[1753853062642,0.00511284,3805.5,3805.4,2.1219]
[1753853063035,0.29151284,3805.5,3805.4,2.1219]
[1753853063236,0.72351284,3805.5,3805.4,2.1219]
[1753853063638,1.28511284,3805.5,3805.4,0.3602]
[1753853064739,1.32961284,3805.5,3805.4,0.3602]
[1753853065335,0.9936,3805.3,3805.2,0.3602]
[1753853065541,1.3245,3805.3,3805.2,0.3602]
[1753853068439,0.0712,3805.1,3805.0,0.2459]
[1753853068742,0.6594,3805.1,3805.0,1.0403]
[1753853069138,1.28,3805.1,3805.0,1.4005]
[1753853070042,1.28,3805.1,3805.0,1.685]
[1753853070640,0.7896,3805.1,3805.0,2.64756]
[1753853070944,0.2864,3805.3,3805.2,0.81013]
[1753853071146,0.2864,3805.3,3804.5,2.4803623]
[1753853071147,0.00511284,3805.5,3805.4,1.36802]
[1753853071548,0.00511284,3805.5,3805.4,2.64752]
[1753853073937,1.28511284,3805.5,3805.4,2.1219]
[1753853074948,0.00511284,3805.5,3805.4,2.1219]
[1753853077749,0.29151284,3805.5,3805.4,2.1219]
[1753853078449,0.72351284,3805.5,3805.4,1.685]
[1753853078755,0.00511284,3805.5,3805.4,2.1219]
[1753853079649,0.00511284,3805.5,3805.4,7.37752022]
[1753853080343,1.62508,3806.4,3806.3,1.7617]
[1753853080546,2.59068796,3806.4,3806.3,1.4005]
[1753853080747,2.59068796,3806.4,3806.3,0.3602]
[1753853080947,2.64028796,3806.4,3806.3,0.3602]
[1753853081147,1.81372,3806.1,3806.0,0.8426]
[1753853081456,2.59072796,3806.1,3806.0,0.8426]
[1753853081647,1.81372,3806.1,3806.0,1.0885]
[1753853081849,1.81372,3806.1,3806.0,1.4005]
[1753853082452,1.81372,3806.1,3806.0,1.685]
[1753853082652,1.2882,3806.1,3806.0,2.1219]
[1753853082854,1.81372,3806.1,3806.0,2.1219]
[1753853083154,1.81372,3806.1,3806.0,1.685]
[1753853083353,1.81372,3806.1,3806.0,1.4005]
[1753853084349,1.81372,3806.1,3806.0,2.1219]
[1753853084551,1.2882,3806.1,3806.0,2.1219]
[1753853084850,0.57430501,3806.5,3806.0,0.8424]
[1753853085049,0.2864,3806.2,3806.1,1.80482]
[1753853085354,0.7184,3806.2,3806.1,2.1219]
[1753853085555,0.2864,3806.2,3806.1,2.1219]
[1753853086064,0.432,3806.8,3806.6,0.52545]
[1753853086358,0.432,3806.8,3806.7,2.1219]
[1753853086359,0.7184,3806.8,3806.7,2.1219]
[1753853086545,0.2864,3806.8,3806.7,2.1219]
[1753853086743,0.432,3807.1,3806.8,0.52542]
[1753853086945,1.0996,3807.1,3807.0,2.1219]
[1753853087156,1.87529141,3807.1,3807.0,2.1219]
[1753853087859,1.0996,3807.1,3807.0,2.1219]
[1753853088056,0.7364,3807.3,3807.2,2.1219]
[1753853088261,1.64295,3807.3,3807.2,2.1219]
[1753853088456,1.3062,3807.3,3807.2,2.1219]
[1753853088651,0.3044,3807.3,3807.2,2.1219]
[1753853089360,0.018,3807.3,3807.2,2.1219]
[1753853089954,0.3044,3807.3,3807.2,2.1219]
[1753853090159,0.018,3807.3,3807.2,2.1219]
[1753853091161,0.018,3807.3,3807.2,2.64727]
[1753853093661,0.018,3807.3,3807.2,7.90040546]
[1753853093855,0.722,3807.3,3807.2,7.90040546]
[1753853094857,1.2089,3807.2,3807.1,0.52538]
[1753853095159,1.2457,3807.2,3807.1,0.334]
[1753853097267,1.2089,3807.2,3807.1,0.334]
[1753853097665,1.2089,3807.2,3807.1,2.0754]
[1753853097859,0.9785,3807.2,3807.1,2.0754]
[1753853098066,0.4428,3807.3,3807.2,2.60077]
[1753853098263,0.2972,3807.3,3807.2,2.60077]
[1753853099362,0.7809,3807.3,3807.2,2.60077]
[1753853099562,1.2269,3807.3,3807.2,2.0754]
[1753853099958,1.31297,3808.6,3807.2,2.0754]
[1753853099959,1.47021598,3809.7,3808.0,1.31314]
[1753853100262,0.27920001,3808.8,3808.2,5.25313546]
[1753853100457,0.2792,3808.4,3808.3,1.3356]
[1753853100965,0.2792,3807.8,3807.7,0.7886]
[1753853101164,0.2792,3807.8,3807.7,0.334]
[1753853101764,0.2792,3807.8,3807.7,1.3356]
[1753853101964,0.704,3807.8,3807.7,2.0754]
[1753853102166,0.4248,3808.1,3807.7,0.851]
[1753853102364,0.4248,3808.1,3807.5,0.52532]
[1753853102365,0.4248,3808.8,3807.8,0.4358]
[1753853102568,0.704,3808.1,3808.0,2.0754]
[1753853102863,0.2792,3807.3,3807.2,1.185]
[1753853103065,0.4248,3808.4,3807.2,1.37636]
[1753853103264,1.16330052,3808.5,3806.6,1.16330052]
[1753853103265,0.2792,3807.4,3807.3,1.185]
[1753853103472,0.2792,3807.4,3807.3,2.0754]
[1753853104170,0.4248,3808.4,3807.7,0.334]
[1753853104363,0.704,3808.2,3808.1,1.3356]
[1753853105970,0.704,3808.2,3808.1,2.0754]
[1753853107963,0.52524,3808.1,3808.0,0.3171]
[1753853108166,0.2792,3808.2,3808.1,5.79889396]
[1753853108371,0.704,3808.2,3808.1,5.58589396]
[1753853108568,0.2792,3807.9,3807.8,0.334]
[1753853108872,0.704,3807.1,3807.0,0.334]
[1753853109073,0.704,3807.1,3807.0,1.6208]
[1753853109475,0.704,3807.1,3807.0,2.0754]
[1753853110568,0.704,3807.1,3807.0,1.3356]
[1753853111775,0.704,3807.1,3807.0,0.334]
[1753853111970,0.704,3807.1,3805.7,1.16330052]
[1753853111971,0.2792,3806.4,3806.3,1.2868]
[1753853112172,0.704,3806.4,3806.3,1.3056]
[1753853112372,0.704,3806.4,3806.3,1.0016]
[1753853112578,0.704,3806.4,3806.3,2.0754]
[1753853112771,0.704,3806.4,3806.3,1.3356]
[1753853114682,0.704,3806.4,3806.3,1.6396]
[1753853116087,0.704,3806.4,3806.3,2.0754]
[1753853119388,0.52543,3806.8,3806.3,2.0754]
[1753853119589,0.2792,3806.7,3806.6,0.6211]
[1753853119790,0.2792,3806.7,3806.6,2.0754]
[1753853120089,0.704,3806.7,3806.6,2.0754]
[1753853120490,0.52539,3807.1,3806.6,2.0754]
[1753853120681,1.22939,3807.0,3806.9,1.185]
[1753853120888,1.22939,3807.0,3806.9,2.0754]
[1753853121486,0.704,3807.0,3806.9,2.0754]
[1753853121693,0.4619,3807.2,3807.1,0.8421]
[1753853121993,0.7664,3807.2,3807.1,2.082]
[1753853122591,0.3045,3807.2,3807.1,2.082]
[1753853123092,0.7664,3807.2,3807.1,2.082]
[1753853123287,0.7664,3807.2,3807.1,2.60738]
[1753853123483,0.3045,3807.4,3807.3,1.70755]
[1753853124088,0.3045,3807.4,3807.3,2.60735]
[1753853124486,0.7664,3807.6,3807.5,2.16213]
[1753853124789,0.7664,3807.6,3807.5,2.60733]
[1753853125792,0.73693939,3808.0,3807.5,1.82203]
[1753853126096,37.831,3808.4,3807.8,1.3407]
[1753853126097,0.7664,3807.9,3807.8,1.3407]
[1753853126496,0.7664,3807.9,3807.8,1.6274]
[1753853126697,0.7664,3807.9,3807.8,2.082]
[1753853127394,0.3045,3807.9,3807.8,2.60728]
[1753853128086,0.3045,3807.9,3807.8,2.082]
[1753853128394,1.29167,3807.9,3807.8,2.082]
[1753853128595,0.7664,3807.9,3807.8,2.082]
[1753853129196,0.4619,3808.2,3807.8,2.082]
[1753853129396,0.98713,3808.2,3807.8,0.8421]
[1753853129596,37.831,3808.4,3808.1,2.082]
[1753853129791,0.7664,3808.2,3808.1,0.5554]
[1753853130391,0.7664,3808.2,3808.1,1.3407]
[1753853131196,0.7664,3808.2,3808.1,2.082]
[1753853132602,0.82967,3808.7,3808.6,0.5554]
[1753853132900,0.82967,3808.7,3808.6,2.082]
[1753853133198,0.3045,3808.7,3808.6,2.082]
[1753853133396,0.98702,3809.0,3808.9,0.8421]
[1753853133397,0.52512,3809.0,3808.9,0.8421]
[1753853133597,0.77231984,3809.3,3808.9,1.36723]
[1753853133899,0.77231984,3809.2,3808.9,1.36723]
[1753853134098,59.6869,3809.5,3809.4,0.8421]
[1753853134305,0.77227509,3809.5,3809.4,2.082]
[1753853134603,1.53867509,3809.5,3809.4,1.6274]
[1753853134998,21.589,3809.9,3809.4,1.36715]
[1753853135199,21.589,3809.9,3809.7,2.60702]
[1753853135200,0.77196941,3809.8,3809.7,2.60702]
[1753853135394,0.2,3809.9,3809.7,1.36712]
[1753853135596,0.2,3809.9,3809.8,2.082]
[1753853135809,0.97156212,3809.9,3809.8,2.082]
[1753853136201,1.73796212,3809.9,3809.8,2.082]
[1753853137404,1.73731687,3809.9,3809.8,2.082]
[1753853137607,0.2,3809.9,3809.8,2.082]
[1753853138803,0.5045,3809.9,3809.8,2.082]
[1753853139100,0.9664,3809.9,3809.8,1.6274]
[1753853139596,0.9664,3809.9,3809.8,1.3407]
[1753853139898,0.9664,3809.9,3809.8,0.5682]
[1753853140293,0.9664,3809.9,3809.8,1.3407]
[1753853141204,0.9664,3809.9,3809.8,1.6274]
[1753853144304,0.9664,3809.9,3809.8,2.082]
[1753853144499,0.9664,3809.9,3809.8,1.6274]
[1753853145110,1.49139,3809.9,3809.8,1.6274]
[1753853145607,1.49139,3809.9,3809.8,2.082]
[1753853146006,0.9664,3809.9,3809.8,2.082]
[1753853146507,0.2,3809.9,3809.8,2.082]
[1753853147808,0.2,3809.9,3809.8,2.60701]
[1753853148709,0.2,3809.9,3809.8,7.8565605]
[1753853150704,0.018,3810.3,3810.2,1.81225]
[1753853150914,0.018,3810.3,3810.2,2.60695]
[1753853151500,0.018,3810.3,3810.2,7.8559494]
[1753853151815,0.4467,3811.6,3810.3,1.2375]
[1753853152114,0.83141,3811.3,3811.2,2.0445]
[1753853152609,1.27811,3811.3,3811.2,1.61]
[1753853154612,1.27811,3811.3,3811.2,2.0445]
[1753853158906,0.83141,3811.3,3811.2,2.0445]
[1753853159106,1.27811,3811.3,3811.2,2.0445]
[1753853159308,1.85086849,3811.3,3811.2,2.0445]
[1753853160712,1.88479849,3811.3,3810.4,0.4655]
[1753853160909,0.7533,3810.5,3810.4,1.61]
[1753853161317,0.7533,3810.5,3810.4,2.0445]
[1753853162007,0.7533,3810.5,3809.8,0.3375]
[1753853162205,1.85099849,3810.3,3810.2,2.0445]
[1753853162707,1.85099849,3810.3,3810.2,0.3375]
[1753853162907,1.27829,3809.9,3809.8,0.2265]
[1753853163113,1.27829,3809.9,3809.8,1.707]
[1753853163315,1.27829,3809.9,3809.8,2.0445]
[1753853163816,1.85104849,3809.9,3809.8,1.3222]
[1753853165208,1.85104849,3809.9,3809.8,0.3375]
[1753853166318,1.27834,3809.6,3809.5,0.3375]
[1753853166614,0.7533,3809.6,3809.5,2.0445]
[1753853173118,0.4467,3810.0,3809.5,0.807]
[1753853173322,1.2783,3809.9,3809.8,1.2725]
[1753853173517,1.2783,3809.9,3809.8,2.0445]
[1753853174125,0.7533,3809.9,3809.8,2.0445]
[1753853174318,0.83156,3810.2,3810.1,0.807]
[1753853174520,2.04400156,3810.2,3810.1,2.0445]
[1753853177623,2.04400156,3810.2,3810.1,0.3375]
[1753853177925,2.04400156,3810.2,3810.1,1.3222]
[1753853178127,2.04400156,3810.2,3810.1,2.0445]
[1753853178326,0.7533,3810.2,3810.1,2.0445]
[1753853180225,0.52494,3810.3,3810.2,1.2375]
[1753853180426,1.27824,3810.3,3810.2,2.0445]
[1753853181524,0.3066,3810.3,3810.2,2.0445]
[1753853182024,0.418,3810.5,3810.2,2.0445]
[1753853182229,0.7173,3810.4,3810.3,2.0782]
[1753853185030,1.2423,3809.9,3809.8,1.6244]
[1753853185330,1.2423,3809.9,3809.8,2.0782]
[1753853185524,0.82436,3809.5,3809.4,1.3231]
[1753853185729,1.39711849,3809.5,3809.4,1.3231]
[1753853185925,0.2993,3809.5,3809.4,1.3231]
[1753853186127,0.7173,3809.5,3809.4,2.0782]